bitfinex-derivatives/quotes_BTCF0:USTF0_20210111
["timestamp","ask_amount","ask_price","bid_price","bid_amount"]
[1610359827006,0.13632608,36169.0,36162.0,0.00040122]
[1610359827309,0.13632608,36169.0,36160.0,0.00040122]
[1610359827507,0.13632608,36169.0,36163.0,0.00040122]
[1610359827908,0.13632608,36169.0,36159.0,0.00040122]
[1610359828108,0.92576786,36175.0,36164.0,0.1367273]
[1610359828307,0.92576786,36175.0,36164.0,0.13632608]
[1610359828508,0.92576786,36175.0,36160.0,0.00040122]
[1610359828706,0.92576786,36175.0,36165.0,0.00040122]
[1610359828909,0.92568617,36174.0,36161.0,0.00040122]
[1610359829110,0.92568617,36174.0,36166.0,0.00040122]
[1610359829309,0.92568617,36174.0,36166.0,0.07875122]
[1610359829508,0.92568617,36174.0,36166.0,0.07835]
[1610359829710,0.92568617,36174.0,36167.0,0.00040122]
[1610359829912,0.925627,36173.0,36167.0,0.00040122]
[1610359830110,0.13632608,36168.0,36167.0,0.00040122]
[1610359830911,1.06190383,36168.0,36167.0,0.00040122]
[1610359831110,1.06190383,36168.0,36166.0,0.07835]
[1610359831322,0.00040122,36165.0,36158.0,0.0998]
[1610359831513,0.00040122,36165.0,36081.0,1.8179]
[1610359831917,0.92578792,36165.0,36159.0,0.00040134]
[1610359832111,0.13632608,36160.0,36159.0,0.08125]
[1610359832519,0.13632608,36160.0,36159.0,0.08165132]
[1610359833710,0.13632608,36160.0,36159.0,0.08125]
[1610359837216,0.92387107,36164.0,36159.0,0.0837]
[1610359837416,0.92387107,36164.0,36160.0,0.0827]
[1610359837620,0.92367675,36168.0,36160.0,0.0827]
[1610359837818,0.92367675,36168.0,36161.0,0.00040132]
[1610359838021,0.92360876,36171.0,36161.0,0.00040132]
[1610359838218,0.87860876,36171.0,36167.0,0.13632608]
[1610359838418,0.81425214,36174.0,36168.0,0.0839]
[1610359838618,0.13632608,36180.0,36168.0,0.0839]
[1610359838821,0.90711609,36181.0,36169.0,0.00040123]
[1610359839021,2.09714386,36186.0,36169.0,0.00040123]
[1610359839421,0.49564531,36186.0,36169.0,0.00040123]
[1610359839618,1.41376461,36192.0,36169.0,0.00040123]
[1610359839820,1.64902177,36205.0,36169.0,0.00040123]
[1610359840019,1.58082177,36205.0,36169.0,0.00040123]
[1610359840221,1.97879314,36213.0,36169.0,0.00040123]
[1610359840222,1.64884775,36210.0,36204.0,0.13632608]
[1610359840622,0.2845,36213.0,36191.0,0.10188]
[1610359841023,0.11087,36214.0,36192.0,0.00040099]
[1610359841222,0.13632608,36215.0,36192.0,0.00040099]
[1610359842021,1.81577425,36218.0,36192.0,0.00040099]
[1610359842222,1.81566678,36221.0,36192.0,0.00040099]
[1610359842621,1.81647253,36225.0,36192.0,0.00040099]
[1610359843022,1.81645854,36226.0,36192.0,0.00040099]
[1610359844225,1.81689347,36227.0,36192.0,0.00040099]
[1610359844636,1.81752731,36225.0,36192.0,0.00040099]
[1610359845029,1.81779176,36221.0,36192.0,0.00040099]
[1610359845428,1.81851948,36216.0,36192.0,0.00040099]
[1610359845826,1.81852578,36217.0,36192.0,0.00040099]
[1610359846026,1.81847466,36219.0,36192.0,0.00040099]
[1610359846227,0.13632608,36197.0,36192.0,0.13672707]
[1610359846826,0.13632608,36197.0,36193.0,0.08260099]
[1610359847427,0.13632608,36197.0,36194.0,0.00040099]
[1610359847826,1.81922015,36215.0,36193.0,0.00040097]
[1610359848028,1.81922015,36215.0,36195.0,0.00040095]
[1610359848227,1.81922015,36215.0,36203.0,0.13632608]
[1610359848426,1.81922015,36215.0,36204.0,0.0818]
[1610359848626,1.81898809,36219.0,36204.0,0.0818]
[1610359849027,1.81901102,36220.0,36204.0,0.0818]
[1610359849327,1.81890213,36221.0,36204.0,0.0818]
[1610359849527,1.81890213,36221.0,36204.0,0.08012109]
[1610359849927,1.45520591,36214.0,36204.0,0.08012109]
[1610359850128,0.13632608,36205.0,36204.0,0.08012109]
[1610359850328,1.45511095,36216.0,36203.0,0.11003]
[1610359850727,1.45503633,36215.0,36203.0,0.11003]
[1610359851029,1.45501248,36216.0,36203.0,0.11003]
[1610359851229,1.45501248,36216.0,36204.0,0.082]
[1610359851431,1.45489175,36217.0,36203.0,0.11003]
[1610359851833,1.4548424,36218.0,36203.0,0.11003]
[1610359852132,1.45484179,36219.0,36213.0,0.13632608]
[1610359852533,1.45484179,36219.0,36204.0,0.0833]
[1610359852733,1.65320676,36223.0,36204.0,0.0833]
[1610359853532,1.65314111,36224.0,36204.0,0.0833]
[1610359854133,1.65314111,36224.0,36209.0,0.13632608]
[1610359854635,1.65342976,36222.0,36209.0,0.13632608]
[1610359855036,1.65328097,36225.0,36209.0,0.13632608]
[1610359856137,1.62360705,36225.0,36217.0,0.13632608]
[1610359856337,1.81847626,36231.0,36217.0,0.13632608]
[1610359856738,0.07148,36232.0,36217.0,0.13632608]
[1610359856938,1.8184699,36235.0,36217.0,0.13632608]
[1610359857138,1.45477653,36229.0,36217.0,0.13632608]
[1610359857838,1.45464435,36227.0,36217.0,0.13632608]
[1610359858241,0.13632608,36218.0,36212.0,0.13632608]
[1610359859543,0.05382608,36218.0,36212.0,0.13632608]
[1610359859744,2.608e-05,36218.0,36212.0,0.13632608]
[1610359860146,2.608e-05,36218.0,36216.0,0.13632608]
[1610359860343,1.45475174,36225.0,36216.0,0.13632608]
[1610359861045,1.45454529,36227.0,36216.0,0.13632608]
[1610359861546,1.45454529,36227.0,36204.0,0.0828]
[1610359861746,1.45443535,36226.0,36203.0,0.11003]
[1610359862046,1.45444209,36227.0,36200.0,0.0822]
[1610359862245,0.13632608,36223.0,36217.0,0.13632608]
[1610359863046,0.13632608,36223.0,36200.0,0.07085]
[1610359863450,0.13632608,36223.0,36201.0,0.0004008]
[1610359863647,0.13632608,36223.0,36200.0,0.07085]
[1610359863848,1.45470872,36220.0,36200.0,0.07085]
[1610359864251,1.4547326,36219.0,36201.0,0.0004009]
[1610359864651,1.4547895,36218.0,36201.0,0.0004009]
[1610359865051,1.45466366,36221.0,36201.0,0.0004009]
[1610359865352,1.45460755,36223.0,36201.0,0.0004009]
[1610359865852,4.1749,36224.0,36201.0,0.0004009]
[1610359865853,1.45453449,36222.0,36201.0,0.0004009]
[1610359866253,5.62946197,36224.0,36213.0,0.13632608]
[1610359866454,5.62946197,36224.0,36213.0,0.22196608]
[1610359866653,5.62946197,36224.0,36213.0,0.08564]
[1610359866853,1.45448763,36222.0,36214.0,0.00040083]
[1610359867653,1.45457401,36221.0,36213.0,0.08564]
[1610359867853,1.45466556,36220.0,36213.0,0.08564]
[1610359868256,0.13632608,36214.0,36213.0,0.08564]
[1610359868657,0.13632608,36214.0,36213.0,0.08604084]
[1610359870358,0.13632608,36214.0,36213.0,0.08436203]
[1610359873661,1.59121411,36214.0,36200.0,0.07085]
[1610359873859,1.59154989,36214.0,36171.0,7.8505]
[1610359874261,1.45500641,36209.0,36201.0,0.00040085]
[1610359874461,1.45500641,36209.0,36191.0,0.00040085]
[1610359874662,1.4550584,36207.0,36202.0,0.00040087]
[1610359875064,2.14943918,36222.0,36171.0,7.8505]
[1610359875065,1.45510069,36206.0,36192.0,0.00040087]
[1610359875262,1.45543652,36206.0,36203.0,0.00040089]
[1610359875464,1.45518049,36204.0,36203.0,0.09936]
[1610359875865,1.45518049,36204.0,36203.0,0.09895911]
[1610359876065,1.45551636,36204.0,36203.0,0.09935979]
[1610359876264,1.59184244,36204.0,36203.0,0.09935979]
[1610359876465,3.24562989,36204.0,36203.0,0.09935979]
[1610359876867,1.59184244,36204.0,36203.0,0.09935979]
[1610359877267,3.2456461,36204.0,36203.0,0.09935979]
[1610359878868,3.2456461,36204.0,36183.0,3.8002]
[1610359878869,1.59150657,36204.0,36183.0,3.8002]
[1610359879270,1.45518049,36204.0,36183.0,3.8002]
[1610359879470,2.05583381,36205.0,36184.0,0.00040064]
[1610359879669,0.6006,36205.0,36184.0,0.08201064]
[1610359880269,0.6006,36205.0,36202.0,0.13632608]
[1610359880470,0.6006,36205.0,36202.0,0.24979608]
[1610359880669,0.6006,36205.0,36202.0,0.11347]
[1610359880970,0.6006,36205.0,36203.0,0.00040064]
[1610359882272,0.13632608,36204.0,36203.0,0.00040064]
[1610359883875,0.13632608,36204.0,36202.0,0.11179071]
[1610359884175,0.13632608,36204.0,36184.0,0.08161]
[1610359884377,0.13632608,36195.0,36184.0,0.08161]
[1610359884579,0.13632608,36195.0,36184.0,0.16381]
[1610359884778,0.13632608,36195.0,36185.0,0.00039441]
[1610359886379,0.13632608,36199.0,36185.0,0.00039441]
[1610359887680,1.45663392,36201.0,36185.0,0.00039441]
[1610359887880,1.45686377,36203.0,36185.0,0.00039441]
[1610359888079,1.45684888,36204.0,36185.0,0.00039441]
[1610359888281,1.45684888,36204.0,36191.0,0.13632608]
[1610359888480,1.45684888,36204.0,36192.0,0.0815]
[1610359888679,1.45684888,36204.0,36192.0,0.16676441]
[1610359888880,1.45714824,36203.0,36193.0,0.00039441]
[1610359890281,0.13632608,36194.0,36193.0,0.00039441]
[1610359891182,0.13632608,36194.0,36192.0,0.08358489]
[1610359891581,0.13632608,36194.0,36193.0,0.0827]
[1610359891781,0.13632608,36194.0,36192.0,0.08358489]
[1610359893384,0.13632608,36194.0,36184.0,0.08161]
[1610359893584,1.59702447,36194.0,36183.0,3.8002]
[1610359893885,1.46082788,36193.0,36185.0,0.00039448]
[1610359894084,1.46082788,36193.0,36184.0,0.00039448]
[1610359894285,0.13632608,36185.0,36184.0,0.00039448]
[1610359895484,1.5994851,36185.0,36184.0,0.00039448]
[1610359896487,1.5994851,36185.0,36184.0,0.0823]
[1610359896686,3.26347822,36185.0,36171.0,0.0819]
[1610359896887,3.26347822,36185.0,36184.0,0.00039455]
[1610359897085,3.26347822,36185.0,36171.0,0.0819]
[1610359897086,1.46433795,36180.0,36172.0,0.00039455]
[1610359897288,1.46433795,36180.0,36171.0,0.0819]
[1610359897488,1.46514758,36179.0,36171.0,0.0819]
[1610359897685,1.46514758,36179.0,36173.0,0.00039454]
[1610359897888,1.46514758,36179.0,36157.0,4.48582454]
[1610359898390,1.46514758,36179.0,36172.0,0.13632608]
[1610359898633,1.46514758,36179.0,36172.0,0.10645]
[1610359898785,1.46545134,36176.0,36172.0,0.10645]
[1610359898986,1.66524499,36176.0,36173.0,0.00039452]
[1610359899789,2.63072486,36174.0,36173.0,0.00039452]
[1610359900089,4.29568919,36174.0,36173.0,0.00039452]
[1610359900287,4.43201527,36174.0,36173.0,0.00039452]
[1610359900488,2.76705094,36174.0,36173.0,0.00039452]
[1610359901291,2.76705094,36174.0,36173.0,0.08191414]
[1610359901489,2.76705094,36174.0,36157.0,4.48582454]
[1610359902090,1.16435806,36169.0,36158.0,0.00039452]
[1610359902288,0.13632608,36159.0,36158.0,0.00039452]
[1610359903088,0.13632608,36159.0,36158.0,0.08419452]
[1610359903290,0.13632608,36159.0,36158.0,0.0838]
[1610359903589,0.13632608,36159.0,36158.0,0.08419454]
[1610359903793,1.16389091,36168.0,36158.0,0.08419454]
[1610359903989,1.16389091,36168.0,36158.0,0.07962454]
[1610359904189,1.16389091,36168.0,36159.0,0.00039454]
[1610359904390,0.13632608,36160.0,36159.0,0.13672062]
[1610359904590,0.13632608,36160.0,36159.0,0.00039454]
[1610359905193,1.16297716,36167.0,36159.0,0.00039454]
[1610359905391,1.16297716,36167.0,36160.0,0.0834]
[1610359905592,1.16297716,36167.0,36159.0,0.00039454]
[1610359905792,1.16297716,36167.0,36161.0,0.00039459]
[1610359905992,1.16297716,36167.0,36160.0,0.00039459]
[1610359906192,1.16297716,36167.0,36162.0,0.00039459]
[1610359906392,0.13632608,36163.0,36162.0,0.00039459]
[1610359906593,0.13632608,36163.0,36159.0,0.00039459]
[1610359906794,0.13632608,36163.0,36162.0,0.00039459]
[1610359906993,0.13632608,36163.0,36160.0,0.00039459]
[1610359907293,1.06583725,36163.0,36162.0,0.00039459]
[1610359907494,0.13632608,36163.0,36161.0,0.00039459]
[1610359907696,1.16184748,36167.0,36161.0,0.00039459]
[1610359907894,0.92913896,36163.0,36159.0,0.00039462]
[1610359908097,1.16136943,36169.0,36162.0,0.00039462]
[1610359908294,1.16136943,36169.0,36160.0,0.00039462]
[1610359908495,1.45932771,36176.0,36160.0,0.08389462]
[1610359908696,1.40402771,36176.0,36175.0,0.13632608]
[1610359908896,1.65810978,36185.0,36175.0,0.13632608]
[1610359909096,1.65810978,36185.0,36175.0,0.20738063]
[1610359909297,1.6580801,36187.0,36175.0,0.20738063]
[1610359909496,1.6580801,36187.0,36176.0,0.00039455]
[1610359909697,1.49579307,36188.0,36176.0,0.00039455]
[1610359910097,1.82338994,36199.0,36176.0,0.08449455]
[1610359910299,1.82319091,36205.0,36176.0,0.08449455]
[1610359910496,1.82319091,36205.0,36177.0,0.00039443]
[1610359910697,1.82319091,36205.0,36193.0,0.13632608]
[1610359910898,1.82319091,36205.0,36193.0,0.20760608]
[1610359911099,1.82294356,36207.0,36193.0,0.20760608]
[1610359911300,1.82294356,36207.0,36194.0,0.00039437]
[1610359911502,1.82290105,36208.0,36194.0,0.00039437]
[1610359911904,1.98860426,36212.0,36193.0,0.20632094]
[1610359912103,1.98849509,36215.0,36193.0,0.20632094]
[1610359912309,1.98849509,36215.0,36193.0,0.07128]
[1610359912515,1.98885513,36214.0,36193.0,0.07128]
[1610359912910,1.98896053,36211.0,36193.0,0.07128]
[1610359913302,0.2931,36222.0,36193.0,0.07128]
[1610359913303,1.98934463,36209.0,36193.0,0.07128]
[1610359913704,1.98950734,36204.0,36176.0,0.0841]
[1610359913903,1.98949132,36205.0,36176.0,0.0841]
[1610359914102,1.98949132,36205.0,36177.0,0.0003944]
[1610359914303,1.98961238,36203.0,36177.0,0.0003944]
[1610359914702,1.98961238,36203.0,36180.0,0.13632608]
[1610359914903,1.98961238,36203.0,36177.0,0.0003944]
[1610359915202,1.98961238,36203.0,36181.0,0.0003944]
[1610359915402,1.98994802,36201.0,36178.0,0.0003944]
[1610359915704,1.98995648,36202.0,36182.0,0.0003944]
[1610359915903,1.98995648,36202.0,36179.0,0.00039444]
[1610359916305,1.99041643,36201.0,36177.0,0.00039444]
[1610359916504,1.99041643,36201.0,36180.0,0.00039444]
[1610359916704,1.99041643,36201.0,36179.0,0.13632608]
[1610359917105,1.99041643,36201.0,36180.0,0.00039444]
[1610359917305,1.99033013,36200.0,36180.0,0.00039444]
[1610359917506,1.99091457,36201.0,36180.0,0.00039444]
[1610359918710,0.13632608,36181.0,36177.0,0.00039444]
[1610359918907,0.13632608,36181.0,36176.0,0.22042608]
[1610359919107,0.13632608,36181.0,36178.0,0.00039445]
[1610359919506,0.13632608,36181.0,36177.0,0.00039445]
[1610359919708,0.08182608,36181.0,36179.0,0.00039445]
[1610359919907,0.07642608,36181.0,36178.0,0.00039445]
[1610359920307,0.07642608,36181.0,36180.0,0.00039445]
[1610359920512,0.07642608,36181.0,36179.0,0.00039445]
[1610359920707,0.04082608,36181.0,36180.0,0.13672053]
[1610359920909,0.04082608,36181.0,36180.0,0.00039445]
[1610359921308,0.04082608,36181.0,36177.0,0.00039445]
[1610359921508,0.04082608,36181.0,36180.0,0.00039445]
[1610359921709,0.04082608,36181.0,36178.0,0.00039447]
[1610359922108,1.50271434,36181.0,36176.0,0.00039447]
[1610359922307,1.50271434,36181.0,36175.0,3.74986]
[1610359922308,1.50271434,36181.0,36175.0,3.74857408]
[1610359922509,1.46238916,36180.0,36175.0,3.74857408]
[1610359922707,0.13632608,36176.0,36175.0,3.74857408]
[1610359922907,0.13632608,36176.0,36154.0,0.13632608]
[1610359923109,1.59875382,36176.0,36154.0,0.13632608]
[1610359923308,1.59875382,36176.0,36159.0,0.00039452]
[1610359923512,1.46277964,36173.0,36159.0,0.11351452]
[1610359923707,1.46277964,36173.0,36159.0,0.11312]
[1610359923909,1.46277644,36171.0,36159.0,0.11312]
[1610359924111,1.46277644,36171.0,36160.0,0.00039455]
[1610359924709,1.46277644,36171.0,36168.0,0.13632608]
[1610359924909,1.46277644,36171.0,36169.0,0.082]
[1610359925110,1.46277124,36170.0,36169.0,0.08239455]
[1610359925309,1.46302684,36173.0,36169.0,0.08239455]
[1610359925509,1.46302684,36173.0,36169.0,0.00039455]
[1610359925710,1.46283271,36175.0,36170.0,0.00039455]
[1610359926113,1.46279532,36176.0,36170.0,0.00039455]
[1610359926312,1.46279532,36176.0,36169.0,0.00039451]
[1610359926513,1.46279532,36176.0,36171.0,0.00039451]
[1610359926712,1.46279532,36176.0,36175.0,0.13632608]
[1610359926913,5.11768746,36177.0,36175.0,0.13632608]
[1610359927313,5.11768746,36177.0,36176.0,0.00039449]
[1610359927513,1.46308746,36177.0,36176.0,0.00039449]
[1610359927713,1.45908746,36177.0,36176.0,0.06955449]
[1610359927914,1.28428746,36177.0,36176.0,0.06955449]
[1610359928113,2.44839187,36177.0,36176.0,0.06955449]
[1610359928512,2.28889187,36177.0,36176.0,0.06955449]
[1610359928714,1.16410441,36177.0,36176.0,0.15195449]
[1610359928913,0.91010441,36177.0,36176.0,0.06955449]
[1610359929114,1.66325902,36182.0,36176.0,0.06955449]
[1610359929517,1.66346908,36181.0,36176.0,0.06955449]
[1610359929714,1.66346908,36181.0,36177.0,0.00039445]
[1610359929917,1.66343991,36187.0,36177.0,0.08429445]
[1610359930116,1.47843991,36187.0,36177.0,0.08429445]
[1610359930416,1.82961387,36192.0,36178.0,0.00039441]
[1610359930617,1.83019771,36197.0,36178.0,0.00039441]
[1610359930816,1.83019771,36197.0,36196.0,0.13632608]
[1610359931018,3.4761,36200.0,36196.0,0.09837]
[1610359931221,1.99637106,36203.0,36196.0,0.09837]
[1610359931222,1.99627248,36206.0,36196.0,0.09876435]
[1610359931419,1.98887248,36206.0,36197.0,0.00039435]
[1610359931618,2.16322835,36211.0,36197.0,0.00039435]
[1610359932017,2.16317153,36210.0,36197.0,0.00039435]
[1610359932417,2.16317153,36210.0,36196.0,0.09708457]
[1610359933517,0.2902,36216.0,36196.0,0.09708457]
[1610359933518,2.16436517,36208.0,36196.0,0.09708457]
[1610359934319,2.16454252,36206.0,36196.0,0.09708457]
[1610359934721,0.13632608,36197.0,36196.0,0.09708457]
[1610359935919,0.13632608,36197.0,36192.0,3.7921]
[1610359936121,0.13632608,36197.0,36175.0,3.6774]
[1610359936321,0.13632608,36197.0,36193.0,0.0003941]
[1610359936532,0.13632608,36197.0,36193.0,0.11227]
[1610359938143,0.13632608,36197.0,36194.0,0.0003941]
[1610359938336,0.13632608,36197.0,36193.0,0.11227]
[1610359939129,0.13632608,36197.0,36185.0,0.0836]
[1610359939628,0.13632608,36197.0,36186.0,0.00039414]
[1610359939827,0.13632608,36197.0,36186.0,0.10730414]
[1610359940227,0.13632608,36197.0,36187.0,0.00039414]
[1610359940730,2.3319984,36202.0,36187.0,0.00039414]
[1610359940731,1.80254852,36188.0,36187.0,0.00039414]
[1610359943028,1.80254852,36188.0,36186.0,0.24194993]
[1610359943628,1.66717178,36187.0,36186.0,0.24194993]
[1610359944127,1.66717178,36187.0,36186.0,0.24234408]
[1610359944931,1.66717178,36187.0,36186.0,0.106018]
[1610359945131,3.50133395,36187.0,36186.0,0.106018]
[1610359945331,1.83416217,36187.0,36186.0,0.106018]
[1610359945532,3.5018476,36187.0,36186.0,0.106018]
[1610359947334,3.5018476,36187.0,36176.0,0.06916]
[1610359947734,3.5018476,36187.0,36172.0,0.0835]
[1610359947933,1.6683944,36183.0,36177.0,0.00039583]
[1610359948133,1.6683944,36183.0,36173.0,0.00039583]
[1610359948335,1.6683944,36183.0,36178.0,0.00039583]
[1610359948536,1.6683944,36183.0,36178.0,0.08207583]
[1610359948735,1.66869968,36182.0,36178.0,0.08168]
[1610359948937,0.13632608,36179.0,36178.0,0.08168]
[1610359949337,0.13632608,36179.0,36178.0,0.08207584]
[1610359950744,1.80576858,36179.0,36178.0,0.08207584]
[1610359952144,3.6424445,36179.0,36178.0,0.08207584]
[1610359953342,5.64637832,36179.0,36178.0,0.08039474]
[1610359953941,5.64637832,36179.0,36178.0,0.0799989]
[1610359954141,5.64637832,36179.0,36178.0,0.00039592]
[1610359954745,5.64637832,36179.0,36169.0,0.00039592]
[1610359954941,0.13632608,36170.0,36168.0,0.08154]
[1610359955142,0.13632608,36170.0,36159.0,0.11312]
[1610359955342,1.80618565,36170.0,36131.0,0.2888]
[1610359955544,1.66975555,36169.0,36160.0,0.00039592]
[1610359955743,1.66975555,36169.0,36156.0,0.00039592]
[1610359955944,1.66975555,36169.0,36161.0,0.00039592]
[1610359956242,1.66975555,36169.0,36161.0,0.08904]
[1610359956443,1.66975555,36169.0,36162.0,0.00039592]
[1610359956744,1.80587248,36170.0,36162.0,0.00039592]
[1610359956945,0.13632608,36163.0,36162.0,0.00039592]
[1610359958649,1.60517814,36163.0,36162.0,0.00039592]
[1610359959650,1.46885206,36163.0,36162.0,0.00039592]
[1610359959852,1.4623712,36164.0,36162.0,0.00039592]
[1610359960049,1.4623712,36164.0,36161.0,0.08904]
[1610359960251,1.66892179,36168.0,36163.0,0.00039595]
[1610359960650,1.66877485,36169.0,36164.0,0.00039595]
[1610359960850,0.13632608,36165.0,36164.0,0.00039595]
[1610359961649,1.80498137,36165.0,36163.0,0.00039595]
[1610359962251,1.66866289,36164.0,36163.0,0.00039595]
[1610359962652,1.80467618,36165.0,36163.0,0.00039595]
[1610359962851,1.80467618,36165.0,36163.0,0.0007919]
[1610359963051,1.80467618,36165.0,36163.0,0.00039595]
[1610359963454,0.13632608,36165.0,36164.0,0.00039595]
[1610359963754,1.80437302,36165.0,36164.0,0.00039595]
[1610359963955,1.80437302,36165.0,36161.0,0.08815046]
[1610359964356,0.13632608,36165.0,36162.0,0.00039585]
[1610359964957,0.13632608,36165.0,36164.0,0.13632608]
[1610359965158,1.80417979,36165.0,36164.0,0.13632608]
[1610359965458,0.13632608,36165.0,36164.0,0.13672195]
[1610359965658,0.13632608,36165.0,36164.0,0.00039587]
[1610359965859,1.80401285,36165.0,36164.0,0.10806587]
[1610359966661,0.13632608,36165.0,36164.0,0.10806587]
[1610359967470,1.6673043,36167.0,36164.0,0.10806587]
[1610359967862,1.66725694,36170.0,36165.0,0.00039584]
[1610359968165,1.66717078,36171.0,36165.0,0.00039584]
[1610359968364,1.83387119,36175.0,36165.0,0.00039584]
[1610359968565,1.80827119,36175.0,36165.0,0.00039584]
[1610359968965,2.0005716,36179.0,36174.0,0.13632608]
[1610359969266,2.00045593,36181.0,36174.0,0.13632608]
[1610359969467,2.00045593,36181.0,36175.0,0.0003958]
[1610359969668,2.00045593,36181.0,36174.0,0.0003958]
[1610359970470,2.00046669,36180.0,36174.0,0.0003958]
[1610359970971,2.00046669,36180.0,36175.0,0.00039577]
[1610359971171,2.00046669,36180.0,36174.0,0.0003958]
[1610359971371,2.00046669,36180.0,36167.0,0.0826]
[1610359971571,2.00082168,36179.0,36175.0,0.00039577]
[1610359971771,2.00082168,36179.0,36168.0,0.00039577]
[1610359971972,2.00082168,36179.0,36167.0,0.0826]
[1610359972373,2.00082168,36179.0,36169.0,0.00039577]
[1610359972575,2.00143586,36178.0,36168.0,0.00039577]
[1610359972773,2.00143586,36178.0,36170.0,0.00039577]
[1610359972973,0.13632608,36171.0,36170.0,0.00039577]
[1610359973173,0.13632608,36171.0,36169.0,0.00039579]
[1610359973373,0.13632608,36171.0,36170.0,0.00039579]
[1610359973873,0.13632608,36171.0,36165.0,0.00039581]
[1610359974072,0.13632608,36171.0,36164.0,0.10767]
[1610359974073,0.13632608,36171.0,36170.0,0.00039581]
[1610359974474,0.13632608,36171.0,36166.0,0.00039581]
[1610359974672,0.13632608,36171.0,36170.0,0.00039581]
[1610359974873,0.13632608,36171.0,36164.0,0.10638433]
[1610359975077,0.13632608,36165.0,36155.0,0.13632608]
[1610359975474,0.13632608,36165.0,36156.0,0.00039578]
[1610359975673,0.13632608,36165.0,36156.0,0.07614578]
[1610359976174,0.13632608,36165.0,36157.0,0.0003958]
[1610359976974,0.13632608,36158.0,36157.0,0.0003958]
[1610359977376,0.13632608,36158.0,36157.0,0.0839958]
[1610359977877,0.13632608,36158.0,36157.0,0.0003958]
[1610359980178,0.13632608,36158.0,36156.0,0.07575]
[1610359980380,0.13632608,36158.0,36157.0,0.00039581]
[1610359982483,1.80379539,36158.0,36156.0,0.07575]
[1610359982684,1.80379539,36158.0,36145.0,3.5872]
[1610359982884,3.13488186,36157.0,36145.0,3.5872]
[1610359983106,0.13632608,36146.0,36145.0,3.5872]
[1610359983683,0.13632608,36146.0,36145.0,3.58759581]
[1610359984885,1.60314975,36146.0,36145.0,3.58759581]
[1610359985085,3.26997053,36146.0,36145.0,3.58759581]
[1610359985487,1.60314975,36146.0,36145.0,0.00039581]
[1610359985885,5.45524975,36146.0,36123.0,0.03403942]
[1610359986087,7.12130352,36146.0,36123.0,0.03403942]
[1610359986287,7.12130352,36146.0,36122.0,0.0340396]
[1610359986487,1.46538193,36143.0,36124.0,0.03403968]
[1610359986688,1.46538193,36143.0,36125.0,0.0829]
[1610359986889,1.46545484,36142.0,36125.0,0.17654]
[1610359987090,0.13632608,36126.0,36125.0,0.12768139]
[1610359987291,0.13632608,36126.0,36125.0,0.09364]
[1610359987490,0.13632608,36126.0,36125.0,0.09403416]
[1610359987892,1.46556002,36140.0,36125.0,0.09403416]
[1610359988094,1.46556002,36140.0,36125.0,0.17714]
[1610359988291,1.46556002,36140.0,36126.0,0.00039415]
[1610359988492,3.8521,36146.0,36126.0,0.00039415]
[1610359988694,3.8521,36146.0,36126.0,0.0007883]
[1610359989096,0.13632608,36127.0,36126.0,0.00039415]
[1610359989595,0.13632608,36127.0,36126.0,0.00078831]
[1610359990600,0.13632608,36127.0,36126.0,0.08498831]
[1610359991700,0.13632608,36127.0,36126.0,0.00078831]
[1610359992099,0.13632608,36127.0,36126.0,0.00039415]
[1610359992298,0.21842608,36127.0,36126.0,0.08399415]
[1610359992698,0.21842608,36127.0,36125.0,0.09364]
[1610359992699,1.86684225,36127.0,36125.0,0.09364]
[1610359992898,1.78474225,36127.0,36103.0,3.8057]
[1610359993101,0.13632608,36104.0,36103.0,3.8057]
[1610359993498,0.13632608,36104.0,36103.0,3.80609439]
[1610359993701,1.66028661,36125.0,36103.0,3.80609439]
[1610359993902,1.66024432,36124.0,36104.0,0.0835]
[1610359994303,1.66012565,36127.0,36105.0,0.00039437]
[1610359994702,1.74077427,36128.0,36105.0,0.00039437]
[1610359995002,1.65897427,36128.0,36105.0,0.00039437]
[1610359995203,0.13632608,36107.0,36103.0,3.91285]
[1610359995705,0.13632608,36107.0,36104.0,0.00039436]
[1610359995903,0.13632608,36107.0,36103.0,3.91285]
[1610359996105,0.13632608,36107.0,36104.0,0.0825]
[1610359996306,0.13632608,36107.0,36103.0,0.10715]
[1610359996506,1.65698874,36128.0,36103.0,0.10715]
[1610359997106,0.13632608,36104.0,36103.0,0.24347608]
[1610359997306,0.13632608,36104.0,36103.0,0.10715]
[1610359998907,0.13632608,36104.0,36095.0,0.0823]
[1610359999109,0.13632608,36096.0,36095.0,0.0823]
[1610359999307,0.13632608,36096.0,36089.0,0.13632608]
[1610359999514,0.13632608,36096.0,36087.0,0.084]
[1610359999907,0.13632608,36096.0,36088.0,0.00039541]
[1610360000108,0.13632608,36096.0,36088.0,0.07907541]
[1610360000707,0.13632608,36096.0,36088.0,0.07868]
[1610360000910,0.13632608,36096.0,36089.0,0.00039545]
[1610360001111,0.13632608,36090.0,36089.0,0.00039545]
[1610360001510,0.13632608,36090.0,36088.0,0.07868]
[1610360001911,0.13632608,36090.0,36089.0,0.083]
[1610360002109,0.13632608,36090.0,36088.0,0.07868]
[1610360003110,0.13632608,36090.0,36088.0,0.16138]
[1610360003309,0.13632608,36090.0,36088.0,0.07868]
[1610360004312,0.13632608,36090.0,36088.0,0.16288]
[1610360004511,0.13632608,36090.0,36088.0,0.07868]
[1610360004713,0.22032608,36090.0,36088.0,0.07868]
[1610360005111,0.22032608,36090.0,36079.0,0.0833]
[1610360005112,0.084,36090.0,36079.0,0.0833]
[1610360005313,3.8333,36093.0,36010.0,1.5]
[1610360005511,3.8333,36093.0,36062.0,3.69791]
[1610360005712,3.8333,36093.0,36065.0,0.13632608]
[1610360006113,3.8333,36093.0,36066.0,0.00039472]
[1610360007611,3.8333,36093.0,36071.0,0.13632608]
[1610360007812,3.8333,36093.0,36071.0,0.08241]
[1610360008012,3.8333,36093.0,36072.0,0.00039474]
[1610360008212,3.8333,36093.0,36071.0,0.08241]
[1610360008612,3.8333,36093.0,36072.0,0.0839]
[1610360008814,3.6908,36087.0,36072.0,0.08429474]
[1610360009011,3.6908,36087.0,36073.0,0.00039474]
[1610360009513,3.6908,36087.0,36072.0,0.00039477]
[1610360009713,0.13632608,36073.0,36072.0,3e-08]
[1610360009915,0.13632608,36073.0,36072.0,0.0823]
[1610360010114,0.13632608,36073.0,36072.0,0.0826947]
[1610360010714,3.6908,36087.0,36072.0,0.0826947]
[1610360011114,3.6908,36087.0,36073.0,0.00039468]
[1610360011917,3.6908,36087.0,36072.0,0.00039468]
[1610360012316,3.6908,36087.0,36074.0,0.00039468]
[1610360012517,3.6908,36087.0,36073.0,0.00039468]
[1610360012717,3.6908,36087.0,36075.0,0.00039468]
[1610360013118,3.6908,36087.0,36074.0,0.00039468]
[1610360013318,3.6908,36087.0,36076.0,0.00039471]
[1610360013519,3.6908,36087.0,36075.0,0.00039471]
[1610360013720,3.6908,36087.0,36071.0,0.08241]